fUST/lending_fUST_20240521
["ID","MTS","AMOUNT","RATE_DAILY","PERIOD"]
[327576782,1716240657017,-500.0,0.00044109,41]
[327576783,1716240657026,-191.9523736,0.00044109,41]
[327576784,1716240657035,-884.54,0.00044109,41]
[327576785,1716240657045,-513.40628968,0.00044109,41]
[327576786,1716240657054,-500.0,0.00044109,41]
[327576787,1716240657063,-500.0,0.00044109,41]
[327576788,1716240657072,-500.0,0.00044109,41]
[327576789,1716240657081,-500.0,0.00044109,41]
[327576790,1716240657091,-500.0,0.00044109,41]
[327576791,1716240657100,-500.0,0.00044109,41]
[327576792,1716240657110,-500.0,0.00044109,41]
[327576793,1716240657119,-500.0,0.00044109,2]
[327576794,1716240657128,-500.0,0.00044109,41]
[327576795,1716240657138,-500.0,0.00044109,7]
[327576796,1716240657147,-500.0,0.00044109,41]
[327576797,1716240657156,-500.0,0.00044109,41]
[327576798,1716240657166,-500.0,0.00044109,41]
[327576799,1716240657176,-500.0,0.00044109,41]
[327576800,1716240657185,-500.0,0.00044109,41]
[327576801,1716240657195,-3512.05,0.00044109,7]
[327576802,1716240657205,-500.0,0.00044109,41]
[327576803,1716240657214,-500.0,0.00044109,41]
[327576804,1716240657225,-501.07658133,0.00044109,41]
[327576805,1716240657235,-286.286796,0.00044109,7]
[327576806,1716240657245,-286.286796,0.00044109,7]
[327576807,1716240657266,-533.21,0.00044109,41]
[327576808,1716240657284,-286.286796,0.00044109,7]
[327576809,1716240657294,-286.286796,0.00044109,7]
[327576810,1716240657303,-500.0,0.00044109,41]
[327576811,1716240657323,-500.0,0.00044109,7]
[327576812,1716240657337,-500.0,0.00044109,41]
[327576813,1716240657346,-515.43701064,0.00044109,41]
[327576814,1716240657357,-191.52677258,0.00044109,41]
[327576815,1716240657367,-500.0,0.00044109,41]
[327576816,1716240657377,-500.0,0.00044109,41]
[327576817,1716240657387,-500.0,0.00044109,41]
[327576818,1716240657397,-654.58,0.00044109,41]
[327576819,1716240657407,-500.0,0.00044109,41]
[327576820,1716240657417,-500.0,0.00044109,41]
[327576821,1716240657427,-500.0,0.00044109,41]
[327576822,1716240657438,-503.39009191,0.00044109,41]
[327576823,1716240657448,-585.03431981,0.00044109,41]
[327576824,1716240657458,-500.0,0.00044109,41]
[327576825,1716240657468,-500.0,0.00044109,41]
[327576826,1716240657478,-500.0,0.00044109,41]
[327576827,1716240657487,-1214.46,0.00044109,41]
[327576828,1716240657495,-500.0,0.00044109,41]
[327576829,1716240657505,-500.0,0.00044109,41]
[327576830,1716240657515,-500.0,0.00044109,41]
[327576831,1716240657525,-500.0,0.00044109,41]
[327576832,1716240657535,-500.0,0.00044109,41]
[327576833,1716240657544,-500.0,0.00044109,41]
[327576834,1716240657554,-547.67,0.00044109,41]
[327576835,1716240657563,-500.0,0.00044109,41]
[327576836,1716240657573,-500.0,0.00044109,41]
[327576837,1716240657583,-500.0,0.00044109,41]
[327576838,1716240657592,-500.0,0.00044109,41]
[327576839,1716240657602,-500.0,0.00044109,41]
[327576840,1716240657612,-500.0,0.00044109,41]
[327576841,1716240657621,-500.0,0.00044109,41]
[327576842,1716240657725,-500.0,0.00044109,41]
[327576843,1716240657735,-500.0,0.00044109,41]
[327576844,1716240657745,-500.0,0.00044109,2]
[327576845,1716240657755,-500.0,0.00044109,41]
[327576846,1716240657765,-500.0,0.00044109,41]
[327576847,1716240657774,-500.0,0.00044109,20]
[327576848,1716240657784,-500.0,0.00044109,41]
[327576849,1716240657793,-500.0,0.00044109,41]
[327576850,1716240657802,-500.0,0.00044109,41]
[327576851,1716240657812,-500.0,0.00044109,41]
[327576852,1716240657821,-1383.23,0.00044109,41]
[327576853,1716240657831,-540.8,0.00044109,41]
[327576854,1716240657841,-500.0,0.00044109,41]
[327576855,1716240657850,-500.0,0.00044109,41]
[327576856,1716240657860,-984.12,0.00044109,41]
[327576857,1716240657870,-862.78,0.00044109,41]
[327576858,1716240657880,-500.0,0.00044109,41]
[327576859,1716240657889,-933.51,0.00044109,41]
[327576860,1716240657900,-500.0,0.00044109,41]
[327576861,1716240657910,-500.0,0.00044109,41]
[327576862,1716240657919,-608.54,0.00044109,41]
[327576863,1716240657930,-500.0,0.00044109,41]
[327576864,1716240657940,-500.0,0.00044109,41]
[327576865,1716240657949,-500.0,0.00044109,41]
[327576866,1716240657959,-500.0,0.00044109,41]
[327576867,1716240657968,-1427.37,0.00044109,41]
[327576868,1716240657978,-500.0,0.00044109,2]
[327576869,1716240657987,-500.0,0.00044109,41]
[327576870,1716240657996,-500.0,0.00044109,41]
[327576871,1716240658006,-500.0,0.00044109,41]
[327576872,1716240658015,-505.23281356,0.00044109,41]
[327576873,1716240658025,-506.26637876,0.00044109,2]
[327576874,1716240658034,-500.0,0.00044109,41]
[327576875,1716240658043,-500.0,0.00044109,41]
[327576876,1716240658052,-500.0,0.00044109,41]
[327576877,1716240658062,-548.13,0.00044109,41]
[327576878,1716240658072,-1000.0,0.00044109,41]
[327576879,1716240658081,-255.4048986,0.00044109,41]
[327576880,1716240658091,-500.0,0.00044109,41]
[327576881,1716240658100,-500.0,0.00044109,41]
[327576882,1716240658109,-228.619611,0.00044109,7]
[327576883,1716240658119,-228.619611,0.00044109,7]
[327576884,1716240658128,-1304.97,0.00044109,41]
[327576885,1716240658137,-353.96409659,0.00044109,41]
[327576886,1716240658146,-228.619611,0.00044109,7]
[327576887,1716240658155,-228.619611,0.00044109,7]
[327576888,1716240658165,-500.0,0.00044109,41]
[327576889,1716240658175,-500.0,0.00044109,41]
[327576890,1716240658184,-500.0,0.00044109,41]
[327576891,1716240658193,-962.09,0.00044109,41]
[327576892,1716240658203,-930.82,0.00044109,41]
[327576893,1716240658212,-500.0,0.00044109,41]
[327576894,1716240658222,-500.0,0.00044109,41]
[327576895,1716240658231,-853.67,0.00044109,41]
[327576896,1716240658240,-500.0,0.00044109,41]
[327576897,1716240658250,-500.0,0.00044109,41]
[327576898,1716240658260,-500.0,0.00044109,41]
[327576899,1716240658275,-300.0,0.00044109,7]
[327576900,1716240658284,-500.0,0.00044109,41]
[327576901,1716240658293,-306.06859678,0.00044109,41]
[327576902,1716240658303,-500.0,0.00044109,41]
[327576903,1716240658313,-500.0,0.00044109,41]
[327576904,1716240658323,-500.0,0.00044109,41]
[327576905,1716240658332,-500.96355856,0.00044109,41]
[327576906,1716240658341,-500.0,0.00044109,41]
[327576907,1716240658352,-510.16,0.00044109,41]
[327576908,1716240658361,-507.57372436,0.00044109,41]
[327576909,1716240658370,-500.0,0.00044109,41]
[327576910,1716240658380,-500.0,0.00044109,41]
[327576911,1716240658389,-500.0,0.00044109,41]
[327576912,1716240658399,-612.12,0.00044109,41]
[327576913,1716240658408,-500.0,0.00044109,41]
[327576914,1716240658418,-500.0,0.00044109,41]
[327576915,1716240658427,-500.0,0.00044109,41]
[327576916,1716240658436,-500.0,0.00044109,41]
[327576917,1716240658446,-500.0,0.00044109,41]
[327576918,1716240658455,-500.0,0.00044109,41]
[327576919,1716240658464,-500.0,0.00044109,41]
[327576920,1716240658475,-500.0,0.00044109,41]
[327576921,1716240658485,-498.1300528,0.00044109,41]
[327576922,1716240658494,-914.01,0.00044109,41]
[327576923,1716240658503,-505.87716427,0.00044109,41]
[327576924,1716240658513,-500.0,0.00044109,41]
[327576925,1716240658523,-500.0,0.00044109,41]
[327576926,1716240658532,-1265.89,0.00044109,41]
[327576927,1716240658541,-500.0,0.00044109,2]
[327576928,1716240658551,-529.11,0.00044109,30]
[327576929,1716240658560,-500.0,0.00044109,41]
[327576930,1716240658570,-507.19,0.00044109,41]
[327576931,1716240658579,-500.0,0.00044109,41]
[327576932,1716240658588,-500.0,0.00044109,41]
[327576933,1716240658597,-500.0,0.00044109,41]
[327576934,1716240658606,-1125.93,0.00044109,41]
[327576935,1716240658616,-707.81,0.00044109,41]
[327576936,1716240658625,-1093.58,0.00044109,41]
[327576937,1716240658634,-500.0,0.00044109,41]
[327576938,1716240658644,-829.57,0.00044109,41]
[327576939,1716240658653,-500.0,0.00044109,41]
[327576940,1716240658662,-500.0,0.00044109,41]
[327576941,1716240658672,-1043.2,0.00044109,41]
[327576942,1716240658682,-543.82,0.00044109,41]
[327576943,1716240658691,-500.0,0.00044109,41]
[327576944,1716240658701,-500.0,0.00044109,41]
[327576945,1716240658710,-500.0,0.00044109,41]
[327576946,1716240658720,-500.0,0.00044109,41]
[327576947,1716240658730,-1863.04,0.00044109,41]
[327576948,1716240658739,-577.27,0.00044109,41]
[327576949,1716240658748,-1000.0,0.00044109,41]
[327576950,1716240658758,-523.78964543,0.00044109,41]
[327576951,1716240658767,-500.0,0.00044109,41]
[327576952,1716240658776,-500.0,0.00044109,41]
[327576953,1716240658786,-569.8,0.00044109,41]
[327576954,1716240658796,-500.0,0.00044109,41]
[327576955,1716240658806,-500.0,0.00044109,41]
[327576956,1716240658816,-500.0,0.00044109,41]
[327576957,1716240658825,-560.63,0.00044109,41]
[327576958,1716240658835,-500.0,0.00044109,41]
[327576959,1716240658844,-500.0,0.00044109,41]
[327576960,1716240658854,-500.0,0.00044109,41]
[327576961,1716240658864,-500.0,0.00044109,41]
[327576962,1716240658874,-500.0,0.00044109,41]
[327576963,1716240658883,-255.71747506,0.00044109,41]
[327576964,1716240658893,-500.0,0.00044109,41]
[327576965,1716240658903,-1000.0,0.00044109,41]
[327576966,1716240658912,-636.49,0.00044109,41]
[327576967,1716240658921,-500.0,0.00044109,41]
[327576968,1716240658930,-523.47,0.00044109,41]
[327576969,1716240658940,-500.0,0.00044109,41]
[327576970,1716240658950,-646.34,0.00044109,41]
[327576971,1716240658959,-500.0,0.00044109,7]
[327576972,1716240658968,-500.0,0.00044109,41]
[327576973,1716240658979,-665.5,0.00044109,41]
[327576974,1716240658989,-151.0,0.00044109,41]
[327576975,1716240658999,-500.0,0.00044109,41]
[327576976,1716240659008,-500.0,0.00044109,41]
[327576977,1716240659017,-1419.89,0.00044109,41]
[327576978,1716240659027,-500.0,0.00044109,41]
[327576979,1716240659036,-500.0,0.00044109,41]
[327576980,1716240659046,-500.0,0.00044109,30]
[327576981,1716240659055,-500.0,0.00044109,41]
[327576982,1716240659064,-963.59,0.00044109,41]
[327576983,1716240659074,-500.0,0.00044109,41]
[327576984,1716240659083,-500.0,0.00044109,41]
[327576985,1716240659093,-500.0,0.00044109,41]
[327576986,1716240659102,-500.0,0.00044109,41]
[327576987,1716240659112,-500.0,0.00044109,41]
[327576988,1716240659122,-500.0,0.00044109,41]
[327576989,1716240659131,-1142.17,0.00044109,41]
[327576990,1716240659140,-889.89,0.00044109,41]
[327576991,1716240659151,-500.0,0.00044109,41]
[327576992,1716240659161,-1140.28,0.00044109,41]
[327576993,1716240659173,-500.0,0.00044109,41]
[327576994,1716240659186,-500.0,0.00044109,41]
[327576995,1716240659197,-500.0,0.00044109,41]
[327576996,1716240659207,-500.0,0.00044109,41]
[327576997,1716240659218,-500.0,0.00044109,41]
[327576998,1716240659232,-500.0,0.00044109,41]
[327576999,1716240659244,-500.0,0.00044109,41]
[327577000,1716240659255,-500.0,0.00044109,41]
[327577001,1716240659271,-500.0,0.00044109,41]
[327577002,1716240659288,-1116.75,0.00044109,41]
[327577003,1716240659297,-835.02,0.00044109,41]
[327577004,1716240659307,-500.0,0.00044109,41]
[327577005,1716240659316,-500.0,0.00044109,41]
[327577006,1716240659327,-1572.39,0.00044109,41]
[327577007,1716240659337,-576.07,0.00044109,41]
[327577008,1716240659346,-500.0,0.00044109,41]
[327577009,1716240659356,-504.07869845,0.00044109,41]
[327577010,1716240659366,-500.0,0.00044109,41]
[327577011,1716240659455,-500.0,0.00044109,41]
[327577012,1716240659475,-688.19,0.00044109,41]
[327577013,1716240659484,-500.0,0.00044109,41]
[327577014,1716240659494,-500.0,0.00044109,41]
[327577015,1716240659503,-1386.51,0.00044109,41]
[327577016,1716240659512,-801.39,0.00044109,41]
[327577017,1716240659522,-549.75,0.00044109,41]
[327577018,1716240659531,-500.0,0.00044109,41]
[327577019,1716240659540,-920.41,0.00044109,41]
[327577020,1716240659548,-500.0,0.00044109,41]
[327577021,1716240659558,-500.0,0.00044109,41]
[327577022,1716240659567,-500.0,0.00044109,41]
[327577023,1716240659577,-500.0,0.00044109,41]
[327577024,1716240659587,-506.15,0.00044109,41]
[327577025,1716240659596,-500.0,0.00044109,41]
[327577026,1716240659605,-500.0,0.00044109,41]
[327577027,1716240659616,-500.0,0.00044109,41]
[327577028,1716240659626,-500.0,0.00044109,41]
[327577029,1716240659635,-563.67,0.00044109,41]
[327577030,1716240659644,-1461.91,0.00044109,41]
[327577031,1716240659654,-500.0,0.00044109,41]
[327577032,1716240659663,-1034.96,0.00044109,41]
[327577033,1716240659672,-500.0,0.00044109,14]
[327577034,1716240659682,-557.23,0.00044109,41]
[327577035,1716240659691,-500.0,0.00044109,41]
[327577036,1716240659700,-500.0,0.00044109,41]
[327577037,1716240659710,-500.0,0.00044109,41]
[327577038,1716240659719,-500.0,0.00044109,41]
[327577039,1716240659730,-500.0,0.00044109,41]
[327577040,1716240659739,-500.0,0.00044109,41]
[327577041,1716240659747,-865.01,0.00044109,41]
[327577042,1716240659756,-500.0,0.00044109,41]
[327577043,1716240659765,-501.05297207,0.00044109,41]
[327577044,1716240659775,-500.0,0.00044109,41]
[327577045,1716240659785,-500.0,0.00044109,41]
[327577046,1716240659795,-500.0,0.00044109,41]
[327577047,1716240659804,-500.0,0.00044109,41]
[327577048,1716240659814,-500.0,0.00044109,41]
[327577049,1716240659823,-500.0,0.00044109,41]
[327577050,1716240659833,-500.0,0.00044109,41]
[327577051,1716240659842,-772.62,0.00044109,41]
[327577052,1716240659852,-505.53358864,0.00044109,41]
[327577053,1716240659862,-505.32,0.00044109,41]
[327577054,1716240659871,-500.0,0.00044109,41]
[327577055,1716240659881,-500.0,0.00044109,41]
[327577056,1716240659890,-500.0,0.00044109,41]
[327577057,1716240659900,-500.0,0.00044109,41]
[327577058,1716240659909,-500.0,0.00044109,41]
[327577059,1716240659919,-618.3,0.00044109,41]
[327577060,1716240659928,-943.29,0.00044109,41]
[327577061,1716240659937,-500.0,0.00044109,41]
[327577062,1716240659947,-500.0,0.00044109,41]
[327577063,1716240659957,-549.11876076,0.00044109,41]
[327577064,1716240659966,-1002.8,0.00044109,41]
[327577065,1716240659977,-500.0,0.00044109,41]
[327577066,1716240659986,-503.11874479,0.00044109,41]
[327577067,1716240660000,-551.78,0.00044109,41]
[327577068,1716240660013,-500.0,0.00044109,41]
[327577069,1716240660026,-710.52,0.00044109,41]
[327577070,1716240660035,-500.0,0.00044109,41]
[327577071,1716240660044,-500.0,0.00044109,41]
[327577072,1716240660054,-500.0,0.00044109,41]
[327577073,1716240660063,-500.0,0.00044109,41]
[327577074,1716240660073,-500.0,0.00044109,41]
[327577075,1716240660082,-151.0,0.00044109,7]
[327577076,1716240660091,-500.0,0.00044109,41]
[327577077,1716240660100,-500.0,0.00044109,41]
[327577078,1716240660110,-712.28,0.00044109,41]
[327577079,1716240660119,-500.0,0.00044109,41]
[327577080,1716240660129,-500.0,0.00044109,41]
[327577081,1716240660138,-500.0,0.00044109,41]
[327577082,1716240660148,-500.0,0.00044109,41]
[327577083,1716240660157,-526.93,0.00044109,41]
[327577084,1716240660168,-506.94968984,0.00044109,41]
[327577085,1716240660178,-500.0,0.00044109,41]
[327577086,1716240660188,-791.56,0.00044109,41]
[327577087,1716240660197,-2512.77,0.00044109,41]
[327577088,1716240660207,-517.26,0.00044109,41]
[327577089,1716240660216,-632.6418866,0.00044109,41]
[327577090,1716240660227,-500.0,0.00044109,41]
[327577091,1716240660236,-713.03,0.00044109,41]
[327577092,1716240660245,-500.0,0.00044109,41]
[327577093,1716240660254,-500.0,0.00044109,41]
[327577094,1716240660267,-626.58,0.00044109,41]
[327577095,1716240660277,-500.0,0.00044109,41]
[327577096,1716240660287,-500.0,0.00044109,41]
[327577097,1716240660296,-415.53313475,0.00044109,41]
[327577098,1716240660307,-500.0,0.00044109,41]
[327577099,1716240660317,-725.64,0.00044109,41]
[327577100,1716240660326,-500.0,0.00044109,41]
[327577101,1716240660335,-1122.74,0.00044109,41]
[327577102,1716240660346,-1640.09,0.00044109,41]
[327577103,1716240660355,-500.0,0.00044109,41]
[327577104,1716240660364,-500.0,0.00044109,41]
[327577105,1716240660373,-500.0,0.00044109,41]
[327577106,1716240660383,-500.0,0.00044109,41]
[327577107,1716240660393,-956.06,0.00044109,41]
[327577108,1716240660402,-500.0,0.00044109,41]
[327577109,1716240660411,-500.0,0.00044109,41]
[327577110,1716240660421,-500.0,0.00044109,41]
[327577111,1716240660430,-500.0,0.00044109,41]
[327577112,1716240660440,-1011.91,0.00044109,41]
[327577113,1716240660450,-609.34,0.00044109,41]
[327577114,1716240660459,-500.0,0.00044109,41]
[327577115,1716240660468,-500.0,0.00044109,41]
[327577116,1716240660480,-833.35,0.00044109,41]
[327577117,1716240660489,-500.0,0.00044109,41]
[327577118,1716240660498,-500.0,0.00044109,41]
[327577119,1716240660507,-2988.48,0.00044109,41]
[327577120,1716240660516,-849.37,0.00044109,41]
[327577121,1716240660524,-4869.7,0.00044109,41]
[327577122,1716240660533,-500.0,0.00044109,41]
[327577123,1716240660543,-1558.14,0.00044109,41]
[327577124,1716240660552,-500.0,0.00044109,41]
[327577125,1716240660561,-1571.02,0.00044109,41]
[327577126,1716240660571,-500.0,0.00044109,41]
[327577127,1716240660580,-500.0,0.00044109,41]
[327577128,1716240660589,-601.93,0.00044109,41]
[327577129,1716240660598,-500.0,0.00044109,41]
[327577130,1716240660607,-3429.26,0.00044109,41]
[327577131,1716240660617,-500.0,0.00044109,41]
[327577132,1716240660626,-500.0,0.00044109,41]
[327577133,1716240660635,-500.0,0.00044109,41]
[327577134,1716240660645,-500.0,0.00044109,41]
[327577135,1716240660654,-3083.38,0.00044109,41]
[327577136,1716240660664,-500.0,0.00044109,41]
[327577137,1716240660673,-500.0,0.00044109,41]
[327577138,1716240660683,-621.82424946,0.00044109,41]
[327577139,1716240660693,-500.0,0.00044109,41]
[327577140,1716240660703,-534.47,0.00044109,120]
[327577141,1716240660713,-500.0,0.00044109,41]
[327577142,1716240660723,-718.21,0.00044109,41]
[327577143,1716240660736,-2015.88,0.00044109,41]
[327577144,1716240660746,-899.6,0.00044109,41]
[327577145,1716240660755,-500.0,0.00044109,41]
[327577146,1716240660765,-602.7697334,0.00044109,41]
[327577147,1716240660775,-503.87930948,0.00044109,41]
[327577148,1716240660785,-999.34,0.00044109,41]
[327577149,1716240660794,-500.0,0.00044109,41]
[327577150,1716240660804,-1006.46,0.00044109,41]
[327577151,1716240660813,-500.0,0.00044109,41]
[327577152,1716240660823,-500.0,0.00044109,41]
[327577153,1716240660832,-500.0,0.00044109,41]
[327577154,1716240660841,-1070.3,0.00044109,41]
[327577155,1716240660851,-534.37005601,0.00044109,41]
[327577156,1716240660860,-5053.09,0.00044109,41]
[327577157,1716240660869,-500.0,0.00044109,41]
[327577158,1716240660878,-999.69,0.00044109,41]
[327577159,1716240660888,-500.0,0.00044109,41]
[327577160,1716240660898,-6152.09,0.00044109,41]
[327577161,1716240660907,-730.92,0.00044109,41]
[327577162,1716240660916,-500.0,0.00044109,41]
[327577163,1716240660925,-500.0,0.00044109,41]
[327577164,1716240660934,-500.0,0.00044109,41]
[327577165,1716240660943,-500.0,0.00044109,41]
[327577166,1716240660952,-500.0,0.00044109,41]
[327577167,1716240661043,-500.0,0.00044109,41]
[327577168,1716240661053,-500.0,0.00044109,41]
[327577169,1716240661062,-500.0,0.00044109,41]
[327577170,1716240661070,-500.0,0.00044109,41]
[327577171,1716240661080,-507.70483243,0.00044109,41]
[327577172,1716240661088,-1001.74,0.00044109,41]
[327577173,1716240661097,-500.0,0.00044109,41]
[327577174,1716240661106,-513.53,0.00044109,41]
[327577175,1716240661115,-500.0,0.00044109,41]
[327577176,1716240661124,-500.0,0.00044109,41]
[327577177,1716240661133,-500.0,0.00044109,41]
[327577178,1716240661141,-500.0,0.00044109,41]
[327577179,1716240661151,-500.0,0.00044109,41]
[327577180,1716240661160,-500.0,0.00044109,41]
[327577181,1716240661169,-500.0,0.00044109,41]
[327577182,1716240661179,-500.0,0.00044109,41]
[327577183,1716240661188,-666.63,0.00044109,41]
[327577184,1716240661197,-734.2,0.00044109,41]
[327577185,1716240661206,-661.66,0.00044109,41]
[327577186,1716240661215,-500.0,0.00044109,41]
[327577187,1716240661227,-500.0,0.00044109,2]
[327577188,1716240661235,-614.61,0.00044109,41]
[327577189,1716240661245,-500.0,0.00044109,41]
[327577190,1716240661254,-7926.58,0.00044109,41]
[327577191,1716240661264,-1224.22,0.00044109,41]
[327577192,1716240661275,-500.0,0.00044109,41]
[327577193,1716240661285,-6587.98,0.00044109,41]
[327577194,1716240661294,-500.0,0.00044109,41]
[327577195,1716240661303,-500.0,0.00044109,41]
[327577196,1716240661314,-500.0,0.00044109,41]
[327577197,1716240661323,-845.16,0.00044109,41]
[327577198,1716240661333,-500.0,0.00044109,41]
[327577199,1716240661342,-500.0,0.00044109,41]
[327577200,1716240661354,-1278.34,0.00044109,41]
[327577201,1716240661363,-500.0,0.00044109,41]
[327577202,1716240661372,-500.0,0.00044109,41]
[327577203,1716240661380,-811.1,0.00044109,41]
[327577204,1716240661390,-520.57,0.00044109,41]
[327577205,1716240661399,-1527.29,0.00044109,41]
[327577206,1716240661408,-928.24,0.00044109,41]
[327577207,1716240661417,-500.0,0.00044109,41]
[327577208,1716240661426,-500.0,0.00044109,41]
[327577209,1716240661435,-500.0,0.00044109,41]
[327577210,1716240661444,-6561.19,0.00044109,21]
[327577211,1716240661453,-720.03,0.00044109,41]
[327577212,1716240661462,-1676.49,0.00044109,41]
[327577213,1716240661472,-875.64,0.00044109,41]
[327577214,1716240661482,-500.0,0.00044109,41]
[327577215,1716240661492,-703.74,0.00044109,41]
[327577216,1716240661501,-500.0,0.00044109,41]
[327577217,1716240661510,-151.0,0.00044109,7]
[327577218,1716240661520,-151.0,0.00044109,7]
[327577219,1716240661529,-842.75,0.00044109,41]
[327577220,1716240661539,-1255.87,0.00044109,41]
[327577221,1716240661548,-598.9,0.00044109,41]
[327577222,1716240661557,-500.0,0.00044109,41]
[327577223,1716240661567,-500.0,0.00044109,41]
[327577224,1716240661576,-1155.03,0.00044109,7]
[327577225,1716240661585,-1245.12,0.00044109,2]
[327577226,1716240661595,-2751.58,0.00044109,41]
[327577227,1716240661604,-500.0,0.00044109,41]
[327577228,1716240661613,-533.40713,0.00044109,7]
[327577229,1716240661622,-533.40713,0.00044109,7]
[327577230,1716240661631,-500.0,0.00044109,41]
[327577231,1716240661641,-500.0,0.00044109,41]
[327577232,1716240661650,-533.40713,0.00044109,7]
[327577233,1716240661661,-533.40713,0.00044109,7]
[327577234,1716240661671,-500.0,0.00044109,41]
[327577235,1716240661680,-4714.06,0.00044109,41]
[327577236,1716240661689,-500.0,0.00044109,41]
[327577237,1716240661698,-681.59,0.00044109,41]
[327577238,1716240661707,-500.0,0.00044109,41]
[327577239,1716240661717,-1361.44,0.00044109,41]
[327577240,1716240661727,-500.0,0.00044109,41]
[327577241,1716240661737,-500.0,0.00044109,41]
[327577242,1716240661746,-539.15,0.00044109,41]
[327577243,1716240661755,-935.38,0.00044109,41]
[327577244,1716240661766,-500.0,0.00044109,41]
[327577245,1716240661775,-2056.06,0.00044109,41]
[327577246,1716240661785,-531.38,0.00044109,41]
[327577247,1716240661794,-500.0,0.00044109,41]
[327577248,1716240661804,-500.0,0.00044109,41]
[327577249,1716240661813,-500.0,0.00044109,41]
[327577250,1716240661822,-500.0,0.00044109,41]
[327577251,1716240661831,-500.0,0.00044109,41]
[327577252,1716240661840,-500.93176414,0.00044109,2]
[327577253,1716240661849,-500.0,0.00044109,41]
[327577254,1716240661858,-1485.31,0.00044109,41]
[327577255,1716240661867,-500.0,0.00044109,41]
[327577256,1716240661876,-500.0,0.00044109,41]
[327577257,1716240661886,-500.0,0.00044109,41]
[327577258,1716240661895,-546.55,0.00044109,41]
[327577259,1716240661904,-500.0,0.00044109,41]
[327577260,1716240661913,-1371.72,0.00044109,41]
[327577261,1716240661923,-500.0,0.00044109,41]
[327577262,1716240661932,-1789.43,0.00044109,41]
[327577263,1716240661942,-27847.71,0.00044109,41]
[327577264,1716240661951,-751.03,0.00044109,41]
[327577265,1716240661961,-3900.83,0.00044109,30]
[327577266,1716240661970,-151.0,0.00044109,7]
[327577267,1716240661981,-885.61,0.00044109,41]
[327577268,1716240661990,-151.0,0.00044109,7]
[327577269,1716240661999,-500.0,0.00044109,41]
[327577270,1716240662008,-500.0,0.00044109,41]
[327577271,1716240662017,-500.0,0.00044109,41]
[327577272,1716240662027,-186.736001,0.00044109,7]
[327577273,1716240662038,-186.736001,0.00044109,7]
[327577274,1716240662049,-556.86,0.00044109,41]
[327577275,1716240662059,-1046.32,0.00044109,41]
[327577276,1716240662069,-186.736001,0.00044109,7]
[327577277,1716240662080,-186.736001,0.00044109,7]
[327577278,1716240662091,-238.44088369,0.00044109,41]
[327577279,1716240662101,-500.0,0.00044109,41]
[327577280,1716240662111,-707.51,0.00044109,41]
[327577281,1716240662121,-584.61,0.00044109,41]